Workbook

Sheet 1
B3: д/с Теремок
B5: Кружок "Раз- ладошка, два -ладошка" | C5: "Умелые ручки"
B6: Гизятулова Г.Г.
B7: S- кв.м. | D7: 25
B8: Кол-во занятий в мес. - | D8: 4
B9: Кол-во детей - | D9: 15
B10: Ст-ть использ-го оборудования - руб. | D10: 50760
B12: 1. ОТ на 1 обучающего - руб.: | D12: =D13+D15 -> 17.16
B13: Окл.- 14236,00 руб | D13: =14236/18/4/D9 -> 13.18
B15: Начисление на ОТ - | D15: =D13*30.2% -> 3.98
B18: 2. Затраты на мат.запасы на 1 реб. -руб.
B19: ст обор/36мес.=руб. | D19: =D10/36 -> 1410.00
B20: Затраты на 1 занятие- ст обор в мес/кол-во часов в мес/кол-во детей - руб. | D20: =D19/D8/D9 -> 23.50
B22: 3. Объем накладных затрат 1 ребенка - руб. | D22: =D30 -> 9.34
B23: Расчет накладных затрат
B24: 1 | C24: прогноз затрат на АУП | D24: -
B25: 2 | C25: Прогноз затрат общехозяйственного назнач. | D25: =D34+D35+2.3 -> 9.34
B26: 3 | C26: Прогноз суммы начисленной амортизации имущ-ва общехоз-го назнач. | D26: -
B27: 4 | C27: Прогноз ФОТ основного персонала | D27: =D12 -> 17.16
B28: 5 | C28: Коэффициент накладных затрат 5=(1+2+3)/4 | D28: =D25/D27 -> 0.54
B29: 6 | C29: Затраты на основн персонал, | D29: =D12 -> 17.16
B30: 7 | C30: Итого накладные затраты (в час на 1 реб) | D30: =D25 -> 9.34
B33: 1. | C33: ОТ уборщика: руб. | D33: =D34 -> 6.12
C34: 14686,56 руб./40 час/4 нед*1 час=91,79/кол-во дет, руб. | D34: =91.79/D9 -> 6.12
B35: 2. | C35: Затраты на ком. Услуги: коммун/кол-во дет, руб. | D35: =(B36+B40+B45)/D9 -> 0.92
A36: Э/Э - | B36: =0.01*D7*7.05 -> 1.76 | C36: руб.
A37: Годов. Потребл - 47223 квт/ч (факт 2018 г)
A38: 47223 квт/ч/244 раб.дн.в году=193,54 квт/ч в день/12 час.=16,13 квт/ч (затраты в час работы на все здание)
A39: 16,13 квт/ч /1076,1 кв.м*12,9 кв.м.=1,56 квт/ч*5,69 руб.=
A40: Вода- | B40: =F41+0.1+2.4+2.15 -> 9.45 | C40: руб.
A41: 1 реб*75 л(в день норма)/12 часов/1000=0,00625 куб.м*31,97 руб.=0,32 руб.*кол-во дет= руб. | F41: =0.32*D9 -> 4.8
A42: 2 работника (воспит, уборщ)*20 л/12 час/1000=0,003 куб.м.*31,97 руб.=0,1 руб.
A43: На мытье полов 75 л/1000=0,075 куб.м.*31,97 руб.=2,4 руб.
A44: Водоотвед. 0,00625 куб.м.+0,003 куб.м.+0,075 куб.м.=0,08425 куб.м.*25,54 руб=2,15 руб.
A45: Отопление - | B45: =0.039*D7/30/24*1867 -> 2.53 | C45: руб.
A46: 331,5 Гкал(по факту 2018 г)/8 мес(период отопления)= 41,44 Гкал в мес.
A47: 41,44 Гкал/1076,1*12,9 кв.м=1,270Гкал/30 дн/24 ч*1 ч=0,0018 Гкал в час*1843,34 руб.= руб.
B49: 3. | C49: Материальные затраты - 2,3 руб.
A50: - Канцелярские товары (для ведения документации) – 1,3 руб. на одного ребенка
A51: Стоимость – 6144 руб.
A52: Срок полезного использования – 8 мес.
A53: Расходы в месяц – 768/8=96
A54: Затраты на одного ребенка за одно занятие – 96/4(часов в месяц)=24/10(кол-во детей)=1,2
A55: - Моющие средства для уборки помещения – 1,1 руб. на одного ребенка
A56: Стоимость – 5632
A57: Срок полезного использования – 8 мес.
A58: Расходы в месяц –704/8=88
A59: Затраты на одного ребенка за одно занятие – 88/4(часов в месяц)=22/10(кол-во детей)=1,1
C61: Расчет стоимости одного занятия на 1 человека:
C62: Расчет цены на оказание платной услуги
C64: Наименование статей затрат | D64: Сумма (руб.)
B65: 1 | C65: Затраты на оплату труда основного персонала | D65: =D12*D9 -> 257.43
B66: 2 | C66: Затраты материальных запасов | D66: =D20*D9 -> 352.50
B67: 3 | C67: Сумма начисленной амортизации оборудования, используемого при оказании платной услуги | D67: -
B68: 4 | C68: Накладные затраты, относимые на платную услугу | D68: =D25*D9 -> 140.03
B69: 5 | C69: Итого затрат | D69: =SUM(D65:D68) -> 749.97
B70: 6 | C70: Цена на 1 платную услугу | D70: 75.00
B71: 7 | C71: Цена в месяц на 1 ребенка | D71: 300.00

Sheet 3
B3: д/с Теремок
B5: Кружок "Раз -ступенька, два-ступенька" | C5: "Игралочка"
B6: Осипова А.П
B7: S- кв.м. | D7: 53
B8: Кол-во занятий в мес. - | D8: 4
B9: Кол-во детей - | D9: 13
B10: Ст-ть использ-го оборудования - руб. | D10: 26434
B12: 1. ОТ на 1 обучающего - руб.: | D12: =D13+D15 -> 25.14
B13: Окл.- 18074,64 руб | D13: =18074.64/18/4/D9 -> 19.31
B15: Начисление на ОТ - | D15: =D13*30.2% -> 5.83
B18: 2. Затраты на мат.запасы на 1 реб. -руб.
B19: ст обор/36мес.=руб. | D19: =D10/36 -> 734.28
B20: Затраты на 1 занятие- ст обор в мес/кол-во часов в мес/кол-во детей - руб. | D20: =D19/D8/D9 -> 14.12
B22: 3. Объем накладных затрат 1 ребенка - руб. | D22: =D30 -> 10.74
B23: Расчет накладных затрат
B24: 1 | C24: прогноз затрат на АУП | D24: -
B25: 2 | C25: Прогноз затрат общехозяйственного назнач. | D25: =D34+D35+2.3 -> 10.74
B26: 3 | C26: Прогноз суммы начисленной амортизации имущ-ва общехоз-го назнач. | D26: -
B27: 4 | C27: Прогноз ФОТ основного персонала | D27: =D12 -> 25.14
B28: 5 | C28: Коэффициент накладных затрат 5=(1+2+3)/4 | D28: =D25/D27 -> 0.43
B29: 6 | C29: Затраты на основн персонал, | D29: =D12 -> 25.14
B30: 7 | C30: Итого накладные затраты (в час на 1 реб) | D30: =D25 -> 10.74
B33: 1. | C33: ОТ уборщика: руб. | D33: =D34 -> 7.06
C34: 14686,56 руб./40 час/4 нед*1 час=91,79/кол-во дет, руб. | D34: =91.79/D9 -> 7.06
B35: 2. | C35: Затраты на ком. Услуги: коммун/кол-во дет, руб. | D35: =(B36+B40+B45)/D9 -> 1.38
A36: Э/Э - | B36: =0.01*D7*7.05 -> 3.74 | C36: руб.
A37: Годов. Потребл - 47223 квт/ч (факт 2018 г)
A38: 47223 квт/ч/244 раб.дн.в году=193,54 квт/ч в день/12 час.=16,13 квт/ч (затраты в час работы на все здание)
A39: 16,13 квт/ч /1076,1 кв.м*12,9 кв.м.=1,56 квт/ч*5,69 руб.=
A40: Вода- | B40: =F41+0.1+2.4+2.15 -> 8.81 | C40: руб.
A41: 1 реб*75 л(в день норма)/12 часов/1000=0,00625 куб.м*31,97 руб.=0,32 руб.*кол-во дет= руб. | F41: =0.32*D9 -> 4.16
A42: 2 работника (воспит, уборщ)*20 л/12 час/1000=0,003 куб.м.*31,97 руб.=0,1 руб.
A43: На мытье полов 75 л/1000=0,075 куб.м.*31,97 руб.=2,4 руб.
A44: Водоотвед. 0,00625 куб.м.+0,003 куб.м.+0,075 куб.м.=0,08425 куб.м.*25,54 руб=2,15 руб.
A45: Отопление - | B45: =0.039*D7/30/24*1867 -> 5.36 | C45: руб.
A46: 331,5 Гкал(по факту 2018 г)/8 мес(период отопления)= 41,44 Гкал в мес.
A47: 41,44 Гкал/1076,1*12,9 кв.м=1,270Гкал/30 дн/24 ч*1 ч=0,0018 Гкал в час*1843,34 руб.= руб.
B49: 3. | C49: Материальные затраты - 2,3 руб.
A50: - Канцелярские товары (для ведения документации) – 1,3 руб. на одного ребенка
A51: Стоимость – 6144 руб.
A52: Срок полезного использования – 8 мес.
A53: Расходы в месяц – 768/8=96
A54: Затраты на одного ребенка за одно занятие – 96/4(часов в месяц)=24/10(кол-во детей)=1,2
A55: - Моющие средства для уборки помещения – 1,1 руб. на одного ребенка
A56: Стоимость – 5632
A57: Срок полезного использования – 8 мес.
A58: Расходы в месяц –704/8=88
A59: Затраты на одного ребенка за одно занятие – 88/4(часов в месяц)=22/10(кол-во детей)=1,1
C61: Расчет стоимости одного занятия на 1 человека:
C62: Расчет цены на оказание платной услуги
C64: Наименование статей затрат | D64: Сумма (руб.)
B65: 1 | C65: Затраты на оплату труда основного персонала | D65: =D12*D9 -> 326.85
B66: 2 | C66: Затраты материальных запасов | D66: =D20*D9 -> 183.57
B67: 3 | C67: Сумма начисленной амортизации оборудования, используемого при оказании платной услуги | D67: -
B68: 4 | C68: Накладные затраты, относимые на платную услугу | D68: =D25*D9 -> 139.60
B69: 5 | C69: Итого затрат | D69: =SUM(D65:D68) -> 650.02
B70: 6 | C70: Цена на 1 платную услугу | D70: =D69/D9 -> 50.00
B71: 7 | C71: Цена в месяц на 1 ребенка | D71: 300.00

Sheet 8
B3: д/с Теремок
B5: Кружок "По дороге к Азбуке " | C5: "Развивашка"
B6: Романова Т.И.
B7: S- кв.м. | D7: 53
B8: Кол-во занятий в мес. - | D8: 4
B9: Кол-во детей - | D9: 26
B10: Ст-ть использ-го оборудования - руб. | D10: 26434
B12: 1. ОТ на 1 обучающего - руб.: | D12: =D13+D15 -> 12.57
B13: Окл.- 18074,64 руб | D13: =18074.64/18/4/D9 -> 9.66
B15: Начисление на ОТ - | D15: =D13*30.2% -> 2.92
B18: 2. Затраты на мат.запасы на 1 реб. -руб.
B19: ст обор/36мес.=руб. | D19: =D10/36 -> 734.28
B20: Затраты на 1 занятие- ст обор в мес/кол-во часов в мес/кол-во детей - руб. | D20: =D19/D8/D9 -> 7.06
B22: 3. Объем накладных затрат 1 ребенка - руб. | D22: =D30 -> 6.68
B23: Расчет накладных затрат
B24: 1 | C24: прогноз затрат на АУП | D24: -
B25: 2 | C25: Прогноз затрат общехозяйственного назнач. | D25: =D34+D35+2.3 -> 6.68
B26: 3 | C26: Прогноз суммы начисленной амортизации имущ-ва общехоз-го назнач. | D26: -
B27: 4 | C27: Прогноз ФОТ основного персонала | D27: =D12 -> 12.57
B28: 5 | C28: Коэффициент накладных затрат 5=(1+2+3)/4 | D28: =D25/D27 -> 0.53
B29: 6 | C29: Затраты на основн персонал, | D29: =D12 -> 12.57
B30: 7 | C30: Итого накладные затраты (в час на 1 реб) | D30: =D25 -> 6.68
B33: 1. | C33: ОТ уборщика: руб. | D33: =D34 -> 3.53
C34: 14686,56 руб./40 час/4 нед*1 час=91,79/кол-во дет, руб. | D34: =91.79/D9 -> 3.53
B35: 2. | C35: Затраты на ком. Услуги: коммун/кол-во дет, руб. | D35: =(B36+B40+B45)/D9 -> 0.85
A36: Э/Э - | B36: =0.01*D7*7.05 -> 3.74 | C36: руб.
A37: Годов. Потребл - 47223 квт/ч (факт 2018 г)
A38: 47223 квт/ч/244 раб.дн.в году=193,54 квт/ч в день/12 час.=16,13 квт/ч (затраты в час работы на все здание)
A39: 16,13 квт/ч /1076,1 кв.м*12,9 кв.м.=1,56 квт/ч*5,69 руб.=
A40: Вода- | B40: =F41+0.1+2.4+2.15 -> 12.97 | C40: руб.
A41: 1 реб*75 л(в день норма)/12 часов/1000=0,00625 куб.м*31,97 руб.=0,32 руб.*кол-во дет= руб. | F41: =0.32*D9 -> 8.32
A42: 2 работника (воспит, уборщ)*20 л/12 час/1000=0,003 куб.м.*31,97 руб.=0,1 руб.
A43: На мытье полов 75 л/1000=0,075 куб.м.*31,97 руб.=2,4 руб.
A44: Водоотвед. 0,00625 куб.м.+0,003 куб.м.+0,075 куб.м.=0,08425 куб.м.*25,54 руб=2,15 руб.
A45: Отопление - | B45: =0.039*D7/30/24*1867 -> 5.36 | C45: руб.
A46: 331,5 Гкал(по факту 2018 г)/8 мес(период отопления)= 41,44 Гкал в мес.
A47: 41,44 Гкал/1076,1*12,9 кв.м=1,270Гкал/30 дн/24 ч*1 ч=0,0018 Гкал в час*1843,34 руб.= руб.
B49: 3. | C49: Материальные затраты - 2,3 руб.
A50: - Канцелярские товары (для ведения документации) – 1,3 руб. на одного ребенка
A51: Стоимость – 6144 руб.
A52: Срок полезного использования – 8 мес.
A53: Расходы в месяц – 768/8=96
A54: Затраты на одного ребенка за одно занятие – 96/4(часов в месяц)=24/10(кол-во детей)=1,2
A55: - Моющие средства для уборки помещения – 1,1 руб. на одного ребенка
A56: Стоимость – 5632
A57: Срок полезного использования – 8 мес.
A58: Расходы в месяц –704/8=88
A59: Затраты на одного ребенка за одно занятие – 88/4(часов в месяц)=22/10(кол-во детей)=1,1
C61: Расчет стоимости одного занятия на 1 человека:
C62: Расчет цены на оказание платной услуги
C64: Наименование статей затрат | D64: Сумма (руб.)
B65: 1 | C65: Затраты на оплату труда основного персонала | D65: =D12*D9 -> 326.85
B66: 2 | C66: Затраты материальных запасов | D66: =D20*D9 -> 183.57
B67: 3 | C67: Сумма начисленной амортизации оборудования, используемого при оказании платной услуги | D67: -
B68: 4 | C68: Накладные затраты, относимые на платную услугу | D68: =D25*D9 -> 173.66
B69: 5 | C69: Итого затрат | D69: =SUM(D65:D68) -> 684.08
B70: 6 | C70: Цена на 1 платную услугу | D70: 75.00
B71: 7 | C71: Цена в месяц на 1 ребенка | D71: 300.00

Sheet 2
B3: д/с Теремок
B5: Кружок "Логоритмика" | C5: "Веселая математика"
B6: Абдулина Г.В.
B7: S- кв.м. | D7: 65
B8: Кол-во занятий в мес. - | D8: 4
B9: Кол-во детей - | D9: 26
B10: Ст-ть использ-го оборудования - руб. | D10: 36223
B12: 1. ОТ на 1 обучающего - руб.: | D12: =D13+D15 -> 9.88
B13: Окл.- 14200,00 руб | D13: =14200/18/4/D9 -> 7.59
B15: Начисление на ОТ - | D15: =D13*30.2% -> 2.29
B18: 2. Затраты на мат.запасы на 1 реб. -руб.
B19: ст обор/36мес.=руб. | D19: =D10/36 -> 1006.19
B20: Затраты на 1 занятие- ст обор в мес/кол-во часов в мес/кол-во детей - руб. | D20: =D19/D8/D9 -> 9.67
B22: 3. Объем накладных затрат 1 ребенка - руб. | D22: =D30 -> 6.76
B23: Расчет накладных затрат
B24: 1 | C24: прогноз затрат на АУП | D24: -
B25: 2 | C25: Прогноз затрат общехозяйственного назнач. | D25: =D34+D35+2.3 -> 6.76
B26: 3 | C26: Прогноз суммы начисленной амортизации имущ-ва общехоз-го назнач. | D26: -
B27: 4 | C27: Прогноз ФОТ основного персонала | D27: =D12 -> 9.88
B28: 5 | C28: Коэффициент накладных затрат 5=(1+2+3)/4 | D28: =D25/D27 -> 0.68
B29: 6 | C29: Затраты на основн персонал, | D29: =D12 -> 9.88
B30: 7 | C30: Итого накладные затраты (в час на 1 реб) | D30: =D25 -> 6.76
B33: 1. | C33: ОТ уборщика: руб. | D33: =D34 -> 3.53
C34: 14686,56 руб./40 час/4 нед*1 час=91,79/кол-во дет, руб. | D34: =91.79/D9 -> 3.53
B35: 2. | C35: Затраты на ком. Услуги: коммун/кол-во дет, руб. | D35: =(B36+B40+B45)/D9 -> 0.93
A36: Э/Э - | B36: =0.01*D7*7.05 -> 4.58 | C36: руб.
A37: Годов. Потребл - 47223 квт/ч (факт 2018 г)
A38: 47223 квт/ч/244 раб.дн.в году=193,54 квт/ч в день/12 час.=16,13 квт/ч (затраты в час работы на все здание)
A39: 16,13 квт/ч /1076,1 кв.м*12,9 кв.м.=1,56 квт/ч*5,69 руб.=
A40: Вода- | B40: =F41+0.1+2.4+2.15 -> 12.97 | C40: руб.
A41: 1 реб*75 л(в день норма)/12 часов/1000=0,00625 куб.м*31,97 руб.=0,32 руб.*кол-во дет= руб. | F41: =0.32*D9 -> 8.32
A42: 2 работника (воспит, уборщ)*20 л/12 час/1000=0,003 куб.м.*31,97 руб.=0,1 руб.
A43: На мытье полов 75 л/1000=0,075 куб.м.*31,97 руб.=2,4 руб.
A44: Водоотвед. 0,00625 куб.м.+0,003 куб.м.+0,075 куб.м.=0,08425 куб.м.*25,54 руб=2,15 руб.
A45: Отопление - | B45: =0.039*D7/30/24*1867 -> 6.57 | C45: руб.
A46: 331,5 Гкал(по факту 2018 г)/8 мес(период отопления)= 41,44 Гкал в мес.
A47: 41,44 Гкал/1076,1*12,9 кв.м=1,270Гкал/30 дн/24 ч*1 ч=0,0018 Гкал в час*1843,34 руб.= руб.
B49: 3. | C49: Материальные затраты - 2,3 руб.
A50: - Канцелярские товары (для ведения документации) – 1,3 руб. на одного ребенка
A51: Стоимость – 6144 руб.
A52: Срок полезного использования – 8 мес.
A53: Расходы в месяц – 768/8=96
A54: Затраты на одного ребенка за одно занятие – 96/4(часов в месяц)=24/10(кол-во детей)=1,2
A55: - Моющие средства для уборки помещения – 1,1 руб. на одного ребенка
A56: Стоимость – 5632
A57: Срок полезного использования – 8 мес.
A58: Расходы в месяц –704/8=88
A59: Затраты на одного ребенка за одно занятие – 88/4(часов в месяц)=22/10(кол-во детей)=1,1
C61: Расчет стоимости одного занятия на 1 человека:
C62: Расчет цены на оказание платной услуги
C64: Наименование статей затрат | D64: Сумма (руб.)
B65: 1 | C65: Затраты на оплату труда основного персонала | D65: =D12*D9 -> 256.78
B66: 2 | C66: Затраты материальных запасов | D66: =D20*D9 -> 251.55
B67: 3 | C67: Сумма начисленной амортизации оборудования, используемого при оказании платной услуги | D67: -
B68: 4 | C68: Накладные затраты, относимые на платную услугу | D68: =D25*D9 -> 175.72
B69: 5 | C69: Итого затрат | D69: =SUM(D65:D68) -> 684.05
B70: 6 | C70: Цена на 1 платную услугу | D70: 75.00
B71: 7 | C71: Цена в месяц на 1 ребенка | D71: 300.00

Sheet 9
B3: д/с Теремок
B5: Кружок «Обучайка» | C5: "Математическая игралочка"
B6: Козырькова О.А.
B7: S- кв.м. | D7: 53
B8: Кол-во занятий в мес. - | D8: 4
B9: Кол-во детей - | D9: 18
B10: Ст-ть использ-го оборудования - руб. | D10: 26434
B12: 1. ОТ на 1 обучающего - руб.: | D12: =D13+D15 -> 18.16
B13: Окл.- 18074,64 руб | D13: =18074.64/18/4/D9 -> 13.95
B15: Начисление на ОТ - | D15: =D13*30.2% -> 4.21
B18: 2. Затраты на мат.запасы на 1 реб. -руб.
B19: ст обор/36мес.=руб. | D19: =D10/36 -> 734.28
B20: Затраты на 1 занятие- ст обор в мес/кол-во часов в мес/кол-во детей - руб. | D20: =D19/D8/D9 -> 10.20
B22: 3. Объем накладных затрат 1 ребенка - руб. | D22: =D30 -> 8.48
B23: Расчет накладных затрат
B24: 1 | C24: прогноз затрат на АУП | D24: -
B25: 2 | C25: Прогноз затрат общехозяйственного назнач. | D25: =D34+D35+2.3 -> 8.48
B26: 3 | C26: Прогноз суммы начисленной амортизации имущ-ва общехоз-го назнач. | D26: -
B27: 4 | C27: Прогноз ФОТ основного персонала | D27: =D12 -> 18.16
B28: 5 | C28: Коэффициент накладных затрат 5=(1+2+3)/4 | D28: =D25/D27 -> 0.47
B29: 6 | C29: Затраты на основн персонал, | D29: =D12 -> 18.16
B30: 7 | C30: Итого накладные затраты (в час на 1 реб) | D30: =D25 -> 8.48
B33: 1. | C33: ОТ уборщика: руб. | D33: =D34 -> 5.10
C34: 14686,56 руб./40 час/4 нед*1 час=91,79/кол-во дет, руб. | D34: =91.79/D9 -> 5.10
B35: 2. | C35: Затраты на ком. Услуги: коммун/кол-во дет, руб. | D35: =(B36+B40+B45)/D9 -> 1.08
A36: Э/Э - | B36: =0.01*D7*7.05 -> 3.74 | C36: руб.
A37: Годов. Потребл - 47223 квт/ч (факт 2018 г)
A38: 47223 квт/ч/244 раб.дн.в году=193,54 квт/ч в день/12 час.=16,13 квт/ч (затраты в час работы на все здание)
A39: 16,13 квт/ч /1076,1 кв.м*12,9 кв.м.=1,56 квт/ч*5,69 руб.=
A40: Вода- | B40: =F41+0.1+2.4+2.15 -> 10.41 | C40: руб.
A41: 1 реб*75 л(в день норма)/12 часов/1000=0,00625 куб.м*31,97 руб.=0,32 руб.*кол-во дет= руб. | F41: =0.32*D9 -> 5.76
A42: 2 работника (воспит, уборщ)*20 л/12 час/1000=0,003 куб.м.*31,97 руб.=0,1 руб.
A43: На мытье полов 75 л/1000=0,075 куб.м.*31,97 руб.=2,4 руб.
A44: Водоотвед. 0,00625 куб.м.+0,003 куб.м.+0,075 куб.м.=0,08425 куб.м.*25,54 руб=2,15 руб.
A45: Отопление - | B45: =0.039*D7/30/24*1867 -> 5.36 | C45: руб.
A46: 331,5 Гкал(по факту 2018 г)/8 мес(период отопления)= 41,44 Гкал в мес.
A47: 41,44 Гкал/1076,1*12,9 кв.м=1,270Гкал/30 дн/24 ч*1 ч=0,0018 Гкал в час*1843,34 руб.= руб.
B49: 3. | C49: Материальные затраты - 2,3 руб.
A50: - Канцелярские товары (для ведения документации) – 1,3 руб. на одного ребенка
A51: Стоимость – 6144 руб.
A52: Срок полезного использования – 8 мес.
A53: Расходы в месяц – 768/8=96
A54: Затраты на одного ребенка за одно занятие – 96/4(часов в месяц)=24/10(кол-во детей)=1,2
A55: - Моющие средства для уборки помещения – 1,1 руб. на одного ребенка
A56: Стоимость – 5632
A57: Срок полезного использования – 8 мес.
A58: Расходы в месяц –704/8=88
A59: Затраты на одного ребенка за одно занятие – 88/4(часов в месяц)=22/10(кол-во детей)=1,1
C61: Расчет стоимости одного занятия на 1 человека:
C62: Расчет цены на оказание платной услуги
C64: Наименование статей затрат | D64: Сумма (руб.)
B65: 1 | C65: Затраты на оплату труда основного персонала | D65: =D12*D9 -> 326.85
B66: 2 | C66: Затраты материальных запасов | D66: =D20*D9 -> 183.57
B67: 3 | C67: Сумма начисленной амортизации оборудования, используемого при оказании платной услуги | D67: -
B68: 4 | C68: Накладные затраты, относимые на платную услугу | D68: =D25*D9 -> 152.70
B69: 5 | C69: Итого затрат | D69: =SUM(D65:D68) -> 663.12
B70: 6 | C70: Цена на 1 платную услугу | D70: 75.00
B71: 7 | C71: Цена в месяц на 1 ребенка | D71: =D70*D8 -> 300.00

Sheet 10
B3: д/с Теремок
B5: Кружок «Развивайка» | C5: "Наураша"
B6: Нугуманова Р.А.
B7: S- кв.м. | D7: 53
B8: Кол-во занятий в мес. - | D8: 4
B9: Кол-во детей - | D9: 18
B10: Ст-ть использ-го оборудования - руб. | D10: 24577
B12: 1. ОТ на 1 обучающего - руб.: | D12: =D13+D15 -> 18.87
B13: Окл.- 18786,24 руб | D13: =18786.24/18/4/D9 -> 14.50
B15: Начисление на ОТ - | D15: =D13*30.2% -> 4.38
B18: 2. Затраты на мат.запасы на 1 реб. -руб.
B19: ст обор/36мес.=руб. | D19: =D10/36 -> 682.69
B20: Затраты на 1 занятие- ст обор в мес/кол-во часов в мес/кол-во детей - руб. | D20: =D19/D8/D9 -> 9.48
B22: 3. Объем накладных затрат 1 ребенка - руб. | D22: =D30 -> 8.48
B23: Расчет накладных затрат
B24: 1 | C24: прогноз затрат на АУП | D24: -
B25: 2 | C25: Прогноз затрат общехозяйственного назнач. | D25: =D34+D35+2.3 -> 8.48
B26: 3 | C26: Прогноз суммы начисленной амортизации имущ-ва общехоз-го назнач. | D26: -
B27: 4 | C27: Прогноз ФОТ основного персонала | D27: =D12 -> 18.87
B28: 5 | C28: Коэффициент накладных затрат 5=(1+2+3)/4 | D28: =D25/D27 -> 0.45
B29: 6 | C29: Затраты на основн персонал, | D29: =D12 -> 18.87
B30: 7 | C30: Итого накладные затраты (в час на 1 реб) | D30: =D25 -> 8.48
B33: 1. | C33: ОТ уборщика: руб. | D33: =D34 -> 5.10
C34: 14686,56 руб./40 час/4 нед*1 час=91,79/кол-во дет, руб. | D34: =91.79/D9 -> 5.10
B35: 2. | C35: Затраты на ком. Услуги: коммун/кол-во дет, руб. | D35: =(B36+B40+B45)/D9 -> 1.08
A36: Э/Э - | B36: =0.01*D7*7.05 -> 3.74 | C36: руб.
A37: Годов. Потребл - 47223 квт/ч (факт 2018 г)
A38: 47223 квт/ч/244 раб.дн.в году=193,54 квт/ч в день/12 час.=16,13 квт/ч (затраты в час работы на все здание)
A39: 16,13 квт/ч /1076,1 кв.м*12,9 кв.м.=1,56 квт/ч*5,69 руб.=
A40: Вода- | B40: =F41+0.1+2.4+2.15 -> 10.41 | C40: руб.
A41: 1 реб*75 л(в день норма)/12 часов/1000=0,00625 куб.м*31,97 руб.=0,32 руб.*кол-во дет= руб. | F41: =0.32*D9 -> 5.76
A42: 2 работника (воспит, уборщ)*20 л/12 час/1000=0,003 куб.м.*31,97 руб.=0,1 руб.
A43: На мытье полов 75 л/1000=0,075 куб.м.*31,97 руб.=2,4 руб.
A44: Водоотвед. 0,00625 куб.м.+0,003 куб.м.+0,075 куб.м.=0,08425 куб.м.*25,54 руб=2,15 руб.
A45: Отопление - | B45: =0.039*D7/30/24*1867 -> 5.36 | C45: руб.
A46: 331,5 Гкал(по факту 2018 г)/8 мес(период отопления)= 41,44 Гкал в мес.
A47: 41,44 Гкал/1076,1*12,9 кв.м=1,270Гкал/30 дн/24 ч*1 ч=0,0018 Гкал в час*1843,34 руб.= руб.
B49: 3. | C49: Материальные затраты - 2,3 руб.
A50: - Канцелярские товары (для ведения документации) – 1,3 руб. на одного ребенка
A51: Стоимость – 6144 руб.
A52: Срок полезного использования – 8 мес.
A53: Расходы в месяц – 768/8=96
A54: Затраты на одного ребенка за одно занятие – 96/4(часов в месяц)=24/10(кол-во детей)=1,2
A55: - Моющие средства для уборки помещения – 1,1 руб. на одного ребенка
A56: Стоимость – 5632
A57: Срок полезного использования – 8 мес.
A58: Расходы в месяц –704/8=88
A59: Затраты на одного ребенка за одно занятие – 88/4(часов в месяц)=22/10(кол-во детей)=1,1
C61: Расчет стоимости одного занятия на 1 человека:
C62: Расчет цены на оказание платной услуги
C64: Наименование статей затрат | D64: Сумма (руб.)
B65: 1 | C65: Затраты на оплату труда основного персонала | D65: =D12*D9 -> 339.72
B66: 2 | C66: Затраты материальных запасов | D66: =D20*D9 -> 170.67
B67: 3 | C67: Сумма начисленной амортизации оборудования, используемого при оказании платной услуги | D67: -
B68: 4 | C68: Накладные затраты, относимые на платную услугу | D68: =D25*D9 -> 152.70
B69: 5 | C69: Итого затрат | D69: =SUM(D65:D68) -> 663.09
B70: 6 | C70: Цена на 1 платную услугу | D70: 75.00
B71: 7 | C71: Цена в месяц на 1 ребенка | D71: =D70*D8 -> 300.00

Sheet 4
B3: д/с Теремок
B5: Кружок «Умелые ручки» | C5: "Юные иссследователи"
B6: Тарасова Г.В.
B7: S- кв.м. | D7: 53
B8: Кол-во занятий в мес. - | D8: 4
B9: Кол-во детей - | D9: 18
B10: Ст-ть использ-го оборудования - руб. | D10: 15969
B12: 1. ОТ на 1 обучающего - руб.: | D12: =D13+D15 -> 14.30
B13: Окл.- 14232,00 руб | D13: =14232/18/4/D9 -> 10.98
B15: Начисление на ОТ - | D15: =D13*30.2% -> 3.32
B18: 2. Затраты на мат.запасы на 1 реб. -руб.
B19: ст обор/36мес.=руб. | D19: =D10/36 -> 443.58
B20: Затраты на 1 занятие- ст обор в мес/кол-во часов в мес/кол-во детей - руб. | D20: =D19/D8/D9 -> 6.16
B22: 3. Объем накладных затрат 1 ребенка - руб. | D22: =D30 -> 8.48
B23: Расчет накладных затрат
B24: 1 | C24: прогноз затрат на АУП | D24: -
B25: 2 | C25: Прогноз затрат общехозяйственного назнач. | D25: =D34+D35+2.3 -> 8.48
B26: 3 | C26: Прогноз суммы начисленной амортизации имущ-ва общехоз-го назнач. | D26: -
B27: 4 | C27: Прогноз ФОТ основного персонала | D27: =D12 -> 14.30
B28: 5 | C28: Коэффициент накладных затрат 5=(1+2+3)/4 | D28: =D25/D27 -> 0.59
B29: 6 | C29: Затраты на основн персонал, | D29: =D12 -> 14.30
B30: 7 | C30: Итого накладные затраты (в час на 1 реб) | D30: =D25 -> 8.48
B33: 1. | C33: ОТ уборщика: руб. | D33: =D34 -> 5.10
C34: 14686,56 руб./40 час/4 нед*1 час=91,79/кол-во дет, руб. | D34: =91.79/D9 -> 5.10
B35: 2. | C35: Затраты на ком. Услуги: коммун/кол-во дет, руб. | D35: =(B36+B40+B45)/D9 -> 1.08
A36: Э/Э - | B36: =0.01*D7*7.05 -> 3.74 | C36: руб.
A37: Годов. Потребл - 47223 квт/ч (факт 2018 г)
A38: 47223 квт/ч/244 раб.дн.в году=193,54 квт/ч в день/12 час.=16,13 квт/ч (затраты в час работы на все здание)
A39: 16,13 квт/ч /1076,1 кв.м*12,9 кв.м.=1,56 квт/ч*5,69 руб.=
A40: Вода- | B40: =F41+0.1+2.4+2.15 -> 10.41 | C40: руб.
A41: 1 реб*75 л(в день норма)/12 часов/1000=0,00625 куб.м*31,97 руб.=0,32 руб.*кол-во дет= руб. | F41: =0.32*D9 -> 5.76
A42: 2 работника (воспит, уборщ)*20 л/12 час/1000=0,003 куб.м.*31,97 руб.=0,1 руб.
A43: На мытье полов 75 л/1000=0,075 куб.м.*31,97 руб.=2,4 руб.
A44: Водоотвед. 0,00625 куб.м.+0,003 куб.м.+0,075 куб.м.=0,08425 куб.м.*25,54 руб=2,15 руб.
A45: Отопление - | B45: =0.039*D7/30/24*1867 -> 5.36 | C45: руб.
A46: 331,5 Гкал(по факту 2018 г)/8 мес(период отопления)= 41,44 Гкал в мес.
A47: 41,44 Гкал/1076,1*12,9 кв.м=1,270Гкал/30 дн/24 ч*1 ч=0,0018 Гкал в час*1843,34 руб.= руб.
B49: 3. | C49: Материальные затраты - 2,3 руб.
A50: - Канцелярские товары (для ведения документации) – 1,3 руб. на одного ребенка
A51: Стоимость – 6144 руб.
A52: Срок полезного использования – 8 мес.
A53: Расходы в месяц – 768/8=96
A54: Затраты на одного ребенка за одно занятие – 96/4(часов в месяц)=24/10(кол-во детей)=1,2
A55: - Моющие средства для уборки помещения – 1,1 руб. на одного ребенка
A56: Стоимость – 5632
A57: Срок полезного использования – 8 мес.
A58: Расходы в месяц –704/8=88
A59: Затраты на одного ребенка за одно занятие – 88/4(часов в месяц)=22/10(кол-во детей)=1,1
C61: Расчет стоимости одного занятия на 1 человека:
C62: Расчет цены на оказание платной услуги
C64: Наименование статей затрат | D64: Сумма (руб.)
B65: 1 | C65: Затраты на оплату труда основного персонала | D65: =D12*D9 -> 257.36
B66: 2 | C66: Затраты материальных запасов | D66: =D20*D9 -> 110.90
B67: 3 | C67: Сумма начисленной амортизации оборудования, используемого при оказании платной услуги | D67: -
B68: 4 | C68: Накладные затраты, относимые на платную услугу | D68: =D25*D9 -> 152.70
B69: 5 | C69: Итого затрат | D69: =SUM(D65:D68) -> 520.95
B70: 6 | C70: Цена на 1 платную услугу | D70: 75.00
B71: 7 | C71: Цена в месяц на 1 ребенка | D71: =D70*D8 -> 300.00

Sheet 5
B3: д/с Теремок
B5: Кружок «Ловкие ладошки» | C5: "Хореографический"
B6: Сайфуллина Л.Р.
B7: S- кв.м. | D7: 53
B8: Кол-во занятий в мес. - | D8: 4
B9: Кол-во детей - | D9: 21
B10: Ст-ть использ-го оборудования - руб. | D10: 26434
B12: 1. ОТ на 1 обучающего - руб.: | D12: =D13+D15 -> 15.56
B13: Окл.- 18074,64 руб | D13: =18074.64/18/4/D9 -> 11.95
B15: Начисление на ОТ - | D15: =D13*30.2% -> 3.61
B18: 2. Затраты на мат.запасы на 1 реб. -руб.
B19: ст обор/36мес.=руб. | D19: =D10/36 -> 734.28
B20: Затраты на 1 занятие- ст обор в мес/кол-во часов в мес/кол-во детей - руб. | D20: =D19/D8/D9 -> 8.74
B22: 3. Объем накладных затрат 1 ребенка - руб. | D22: =D30 -> 7.65
B23: Расчет накладных затрат
B24: 1 | C24: прогноз затрат на АУП | D24: -
B25: 2 | C25: Прогноз затрат общехозяйственного назнач. | D25: =D34+D35+2.3 -> 7.65
B26: 3 | C26: Прогноз суммы начисленной амортизации имущ-ва общехоз-го назнач. | D26: -
B27: 4 | C27: Прогноз ФОТ основного персонала | D27: =D12 -> 15.56
B28: 5 | C28: Коэффициент накладных затрат 5=(1+2+3)/4 | D28: =D25/D27 -> 0.49
B29: 6 | C29: Затраты на основн персонал, | D29: =D12 -> 15.56
B30: 7 | C30: Итого накладные затраты (в час на 1 реб) | D30: =D25 -> 7.65
B33: 1. | C33: ОТ уборщика: руб. | D33: =D34 -> 4.37
C34: 14686,56 руб./40 час/4 нед*1 час=91,79/кол-во дет, руб. | D34: =91.79/D9 -> 4.37
B35: 2. | C35: Затраты на ком. Услуги: коммун/кол-во дет, руб. | D35: =(B36+B40+B45)/D9 -> 0.97
A36: Э/Э - | B36: =0.01*D7*7.05 -> 3.74 | C36: руб.
A37: Годов. Потребл - 47223 квт/ч (факт 2018 г)
A38: 47223 квт/ч/244 раб.дн.в году=193,54 квт/ч в день/12 час.=16,13 квт/ч (затраты в час работы на все здание)
A39: 16,13 квт/ч /1076,1 кв.м*12,9 кв.м.=1,56 квт/ч*5,69 руб.=
A40: Вода- | B40: =F41+0.1+2.4+2.15 -> 11.37 | C40: руб.
A41: 1 реб*75 л(в день норма)/12 часов/1000=0,00625 куб.м*31,97 руб.=0,32 руб.*кол-во дет= руб. | F41: =0.32*D9 -> 6.72
A42: 2 работника (воспит, уборщ)*20 л/12 час/1000=0,003 куб.м.*31,97 руб.=0,1 руб.
A43: На мытье полов 75 л/1000=0,075 куб.м.*31,97 руб.=2,4 руб.
A44: Водоотвед. 0,00625 куб.м.+0,003 куб.м.+0,075 куб.м.=0,08425 куб.м.*25,54 руб=2,15 руб.
A45: Отопление - | B45: =0.039*D7/30/24*1867 -> 5.36 | C45: руб.
A46: 331,5 Гкал(по факту 2018 г)/8 мес(период отопления)= 41,44 Гкал в мес.
A47: 41,44 Гкал/1076,1*12,9 кв.м=1,270Гкал/30 дн/24 ч*1 ч=0,0018 Гкал в час*1843,34 руб.= руб.
B49: 3. | C49: Материальные затраты - 2,3 руб.
A50: - Канцелярские товары (для ведения документации) – 1,3 руб. на одного ребенка
A51: Стоимость – 6144 руб.
A52: Срок полезного использования – 8 мес.
A53: Расходы в месяц – 768/8=96
A54: Затраты на одного ребенка за одно занятие – 96/4(часов в месяц)=24/10(кол-во детей)=1,2
A55: - Моющие средства для уборки помещения – 1,1 руб. на одного ребенка
A56: Стоимость – 5632
A57: Срок полезного использования – 8 мес.
A58: Расходы в месяц –704/8=88
A59: Затраты на одного ребенка за одно занятие – 88/4(часов в месяц)=22/10(кол-во детей)=1,1
C61: Расчет стоимости одного занятия на 1 человека:
C62: Расчет цены на оказание платной услуги
C64: Наименование статей затрат | D64: Сумма (руб.)
B65: 1 | C65: Затраты на оплату труда основного персонала | D65: =D12*D9 -> 326.85
B66: 2 | C66: Затраты материальных запасов | D66: =D20*D9 -> 183.57
B67: 3 | C67: Сумма начисленной амортизации оборудования, используемого при оказании платной услуги | D67: -
B68: 4 | C68: Накладные затраты, относимые на платную услугу | D68: =D25*D9 -> 160.56
B69: 5 | C69: Итого затрат | D69: =SUM(D65:D68) -> 670.98
B70: 6 | C70: Цена на 1 платную услугу | D70: 75.00
B71: 7 | C71: Цена в месяц на 1 ребенка | D71: =D70*D8 -> 300.00

Sheet 6
B3: д/с Теремок
B5: Кружок «Легоконструирование» | C5: "По дороге к Азбуке"
B6: Цыганова Л.А.
B7: S- кв.м. | D7: 53
B8: Кол-во занятий в мес. - | D8: 4
B9: Кол-во детей - | D9: 18
B10: Ст-ть использ-го оборудования - руб. | D10: 26434
B12: 1. ОТ на 1 обучающего - руб.: | D12: =D13+D15 -> 18.16
B13: Окл.- 18074,64 руб | D13: =18074.64/18/4/D9 -> 13.95
B15: Начисление на ОТ - | D15: =D13*30.2% -> 4.21
B18: 2. Затраты на мат.запасы на 1 реб. -руб.
B19: ст обор/36мес.=руб. | D19: =D10/36 -> 734.28
B20: Затраты на 1 занятие- ст обор в мес/кол-во часов в мес/кол-во детей - руб. | D20: =D19/D8/D9 -> 10.20
B22: 3. Объем накладных затрат 1 ребенка - руб. | D22: =D30 -> 8.48
B23: Расчет накладных затрат
B24: 1 | C24: прогноз затрат на АУП | D24: -
B25: 2 | C25: Прогноз затрат общехозяйственного назнач. | D25: =D34+D35+2.3 -> 8.48
B26: 3 | C26: Прогноз суммы начисленной амортизации имущ-ва общехоз-го назнач. | D26: -
B27: 4 | C27: Прогноз ФОТ основного персонала | D27: =D12 -> 18.16
B28: 5 | C28: Коэффициент накладных затрат 5=(1+2+3)/4 | D28: =D25/D27 -> 0.47
B29: 6 | C29: Затраты на основн персонал, | D29: =D12 -> 18.16
B30: 7 | C30: Итого накладные затраты (в час на 1 реб) | D30: =D25 -> 8.48
B33: 1. | C33: ОТ уборщика: руб. | D33: =D34 -> 5.10
C34: 14686,56 руб./40 час/4 нед*1 час=91,79/кол-во дет, руб. | D34: =91.79/D9 -> 5.10
B35: 2. | C35: Затраты на ком. Услуги: коммун/кол-во дет, руб. | D35: =(B36+B40+B45)/D9 -> 1.08
A36: Э/Э - | B36: =0.01*D7*7.05 -> 3.74 | C36: руб.
A37: Годов. Потребл - 47223 квт/ч (факт 2018 г)
A38: 47223 квт/ч/244 раб.дн.в году=193,54 квт/ч в день/12 час.=16,13 квт/ч (затраты в час работы на все здание)
A39: 16,13 квт/ч /1076,1 кв.м*12,9 кв.м.=1,56 квт/ч*5,69 руб.=
A40: Вода- | B40: =F41+0.1+2.4+2.15 -> 10.41 | C40: руб.
A41: 1 реб*75 л(в день норма)/12 часов/1000=0,00625 куб.м*31,97 руб.=0,32 руб.*кол-во дет= руб. | F41: =0.32*D9 -> 5.76
A42: 2 работника (воспит, уборщ)*20 л/12 час/1000=0,003 куб.м.*31,97 руб.=0,1 руб.
A43: На мытье полов 75 л/1000=0,075 куб.м.*31,97 руб.=2,4 руб.
A44: Водоотвед. 0,00625 куб.м.+0,003 куб.м.+0,075 куб.м.=0,08425 куб.м.*25,54 руб=2,15 руб.
A45: Отопление - | B45: =0.039*D7/30/24*1867 -> 5.36 | C45: руб.
A46: 331,5 Гкал(по факту 2018 г)/8 мес(период отопления)= 41,44 Гкал в мес.
A47: 41,44 Гкал/1076,1*12,9 кв.м=1,270Гкал/30 дн/24 ч*1 ч=0,0018 Гкал в час*1843,34 руб.= руб.
B49: 3. | C49: Материальные затраты - 2,3 руб.
A50: - Канцелярские товары (для ведения документации) – 1,3 руб. на одного ребенка
A51: Стоимость – 6144 руб.
A52: Срок полезного использования – 8 мес.
A53: Расходы в месяц – 768/8=96
A54: Затраты на одного ребенка за одно занятие – 96/4(часов в месяц)=24/10(кол-во детей)=1,2
A55: - Моющие средства для уборки помещения – 1,1 руб. на одного ребенка
A56: Стоимость – 5632
A57: Срок полезного использования – 8 мес.
A58: Расходы в месяц –704/8=88
A59: Затраты на одного ребенка за одно занятие – 88/4(часов в месяц)=22/10(кол-во детей)=1,1
C61: Расчет стоимости одного занятия на 1 человека:
C62: Расчет цены на оказание платной услуги
C64: Наименование статей затрат | D64: Сумма (руб.)
B65: 1 | C65: Затраты на оплату труда основного персонала | D65: =D12*D9 -> 326.85
B66: 2 | C66: Затраты материальных запасов | D66: =D20*D9 -> 183.57
B67: 3 | C67: Сумма начисленной амортизации оборудования, используемого при оказании платной услуги | D67: -
B68: 4 | C68: Накладные затраты, относимые на платную услугу | D68: =D25*D9 -> 152.70
B69: 5 | C69: Итого затрат | D69: =SUM(D65:D68) -> 663.12
B70: 6 | C70: Цена на 1 платную услугу | D70: 75.00
B71: 7 | C71: Цена в месяц на 1 ребенка | D71: =D70*D8 -> 300.00

Sheet 7
B3: д/с Теремок
B5: Кружок «Волшебные ладошки» | C5: "Я люблю английский"
B6: Сулейманова Г.И.
B7: S- кв.м. | D7: 53
B8: Кол-во занятий в мес. - | D8: 4
B9: Кол-во детей - | D9: 10
B10: Ст-ть использ-го оборудования - руб. | D10: 29614
B12: 1. ОТ на 1 обучающего - руб.: | D12: =D13+D15 -> 25.74
B13: Окл.- 14232 руб | D13: =14232/18/4/D9 -> 19.77
B15: Начисление на ОТ - | D15: =D13*30.2% -> 5.97
B18: 2. Затраты на мат.запасы на 1 реб. -руб.
B19: ст обор/36мес.=руб. | D19: =D10/36 -> 822.61
B20: Затраты на 1 занятие- ст обор в мес/кол-во часов в мес/кол-во детей - руб. | D20: =D19/D8/D9 -> 20.57
B22: 3. Объем накладных затрат 1 ребенка - руб. | D22: =D30 -> 13.17
B23: Расчет накладных затрат
B24: 1 | C24: прогноз затрат на АУП | D24: -
B25: 2 | C25: Прогноз затрат общехозяйственного назнач. | D25: =D34+D35+2.3 -> 13.17
B26: 3 | C26: Прогноз суммы начисленной амортизации имущ-ва общехоз-го назнач. | D26: -
B27: 4 | C27: Прогноз ФОТ основного персонала | D27: =D12 -> 25.74
B28: 5 | C28: Коэффициент накладных затрат 5=(1+2+3)/4 | D28: =D25/D27 -> 0.51
B29: 6 | C29: Затраты на основн персонал, | D29: =D12 -> 25.74
B30: 7 | C30: Итого накладные затраты (в час на 1 реб) | D30: =D25 -> 13.17
B33: 1. | C33: ОТ уборщика: руб. | D33: =D34 -> 9.18
C34: 14686,56 руб./40 час/4 нед*1 час=91,79/кол-во дет, руб. | D34: =91.79/D9 -> 9.18
B35: 2. | C35: Затраты на ком. Услуги: коммун/кол-во дет, руб. | D35: =(B36+B40+B45)/D9 -> 1.69
A36: Э/Э - | B36: =0.01*D7*7.05 -> 3.74 | C36: руб.
A37: Годов. Потребл - 47223 квт/ч (факт 2018 г)
A38: 47223 квт/ч/244 раб.дн.в году=193,54 квт/ч в день/12 час.=16,13 квт/ч (затраты в час работы на все здание)
A39: 16,13 квт/ч /1076,1 кв.м*12,9 кв.м.=1,56 квт/ч*5,69 руб.=
A40: Вода- | B40: =F41+0.1+2.4+2.15 -> 7.85 | C40: руб.
A41: 1 реб*75 л(в день норма)/12 часов/1000=0,00625 куб.м*31,97 руб.=0,32 руб.*кол-во дет= руб. | F41: =0.32*D9 -> 3.2
A42: 2 работника (воспит, уборщ)*20 л/12 час/1000=0,003 куб.м.*31,97 руб.=0,1 руб.
A43: На мытье полов 75 л/1000=0,075 куб.м.*31,97 руб.=2,4 руб.
A44: Водоотвед. 0,00625 куб.м.+0,003 куб.м.+0,075 куб.м.=0,08425 куб.м.*25,54 руб=2,15 руб.
A45: Отопление - | B45: =0.039*D7/30/24*1867 -> 5.36 | C45: руб.
A46: 331,5 Гкал(по факту 2018 г)/8 мес(период отопления)= 41,44 Гкал в мес.
A47: 41,44 Гкал/1076,1*12,9 кв.м=1,270Гкал/30 дн/24 ч*1 ч=0,0018 Гкал в час*1843,34 руб.= руб.
B49: 3. | C49: Материальные затраты - 2,3 руб.
A50: - Канцелярские товары (для ведения документации) – 1,3 руб. на одного ребенка
A51: Стоимость – 6144 руб.
A52: Срок полезного использования – 8 мес.
A53: Расходы в месяц – 768/8=96
A54: Затраты на одного ребенка за одно занятие – 96/4(часов в месяц)=24/10(кол-во детей)=1,2
A55: - Моющие средства для уборки помещения – 1,1 руб. на одного ребенка
A56: Стоимость – 5632
A57: Срок полезного использования – 8 мес.
A58: Расходы в месяц –704/8=88
A59: Затраты на одного ребенка за одно занятие – 88/4(часов в месяц)=22/10(кол-во детей)=1,1
C61: Расчет стоимости одного занятия на 1 человека:
C62: Расчет цены на оказание платной услуги
C64: Наименование статей затрат | D64: Сумма (руб.)
B65: 1 | C65: Затраты на оплату труда основного персонала | D65: =D12*D9 -> 257.36
B66: 2 | C66: Затраты материальных запасов | D66: =D20*D9 -> 205.65
B67: 3 | C67: Сумма начисленной амортизации оборудования, используемого при оказании платной услуги | D67: -
B68: 4 | C68: Накладные затраты, относимые на платную услугу | D68: =D25*D9 -> 131.74
B69: 5 | C69: Итого затрат | D69: =SUM(D65:D68) -> 594.75
B70: 6 | C70: Цена на 1 платную услугу | D70: 75.00
B71: 7 | C71: Цена в месяц на 1 ребенка | D71: =D70*D8 -> 300.00

Sheet Лист2

Sheet 11
B3: д/с Теремок
B5: Кружок «Спортивный калейдоскоп» | C5: "Звуковичок"
B6: Синцова К.М.
B7: S- кв.м. | D7: 65
B8: Кол-во занятий в мес. - | D8: 4
B9: Кол-во детей - | D9: 9
B10: Ст-ть использ-го оборудования - руб. | D10: 15756
B12: 1. ОТ на 1 обучающего - руб.: | D12: =D13+D15 -> 28.53
B13: Окл.- 14200 руб | D13: =14200/18/4/D9 -> 21.91
B15: Начисление на ОТ - | D15: =D13*30.2% -> 6.62
B18: 2. Затраты на мат.запасы на 1 реб. -руб.
B19: ст обор/36мес.=руб. | D19: =D10/36 -> 437.67
B20: Затраты на 1 занятие- ст обор в мес/кол-во часов в мес/кол-во детей - руб. | D20: =D19/D8/D9 -> 12.16
B22: 3. Объем накладных затрат 1 ребенка - руб. | D22: =D30 -> 14.58
B23: Расчет накладных затрат
B24: 1 | C24: прогноз затрат на АУП | D24: -
B25: 2 | C25: Прогноз затрат общехозяйственного назнач. | D25: =D34+D35+2.3 -> 14.58
B26: 3 | C26: Прогноз суммы начисленной амортизации имущ-ва общехоз-го назнач. | D26: -
B27: 4 | C27: Прогноз ФОТ основного персонала | D27: =D12 -> 28.53
B28: 5 | C28: Коэффициент накладных затрат 5=(1+2+3)/4 | D28: =D25/D27 -> 0.51
B29: 6 | C29: Затраты на основн персонал, | D29: =D12 -> 28.53
B30: 7 | C30: Итого накладные затраты (в час на 1 реб) | D30: =D25 -> 14.58
B33: 1. | C33: ОТ уборщика: руб. | D33: =D34 -> 10.20
C34: 14686,56 руб./40 час/4 нед*1 час=91,79/кол-во дет, руб. | D34: =91.79/D9 -> 10.20
B35: 2. | C35: Затраты на ком. Услуги: коммун/кол-во дет, руб. | D35: =(B36+B40+B45)/D9 -> 2.08
A36: Э/Э - | B36: =0.01*D7*7.05 -> 4.58 | C36: руб.
A37: Годов. Потребл - 47223 квт/ч (факт 2018 г)
A38: 47223 квт/ч/244 раб.дн.в году=193,54 квт/ч в день/12 час.=16,13 квт/ч (затраты в час работы на все здание)
A39: 16,13 квт/ч /1076,1 кв.м*12,9 кв.м.=1,56 квт/ч*5,69 руб.=
A40: Вода- | B40: =F41+0.1+2.4+2.15 -> 7.53 | C40: руб.
A41: 1 реб*75 л(в день норма)/12 часов/1000=0,00625 куб.м*31,97 руб.=0,32 руб.*кол-во дет= руб. | F41: =0.32*D9 -> 2.88
A42: 2 работника (воспит, уборщ)*20 л/12 час/1000=0,003 куб.м.*31,97 руб.=0,1 руб.
A43: На мытье полов 75 л/1000=0,075 куб.м.*31,97 руб.=2,4 руб.
A44: Водоотвед. 0,00625 куб.м.+0,003 куб.м.+0,075 куб.м.=0,08425 куб.м.*25,54 руб=2,15 руб.
A45: Отопление - | B45: =0.039*D7/30/24*1867 -> 6.57 | C45: руб.
A46: 331,5 Гкал(по факту 2018 г)/8 мес(период отопления)= 41,44 Гкал в мес.
A47: 41,44 Гкал/1076,1*12,9 кв.м=1,270Гкал/30 дн/24 ч*1 ч=0,0018 Гкал в час*1843,34 руб.= руб.
B49: 3. | C49: Материальные затраты - 2,3 руб.
A50: - Канцелярские товары (для ведения документации) – 1,3 руб. на одного ребенка
A51: Стоимость – 6144 руб.
A52: Срок полезного использования – 8 мес.
A53: Расходы в месяц – 768/8=96
A54: Затраты на одного ребенка за одно занятие – 96/4(часов в месяц)=24/10(кол-во детей)=1,2
A55: - Моющие средства для уборки помещения – 1,1 руб. на одного ребенка
A56: Стоимость – 5632
A57: Срок полезного использования – 8 мес.
A58: Расходы в месяц –704/8=88
A59: Затраты на одного ребенка за одно занятие – 88/4(часов в месяц)=22/10(кол-во детей)=1,1
C61: Расчет стоимости одного занятия на 1 человека:
C62: Расчет цены на оказание платной услуги
C64: Наименование статей затрат | D64: Сумма (руб.)
B65: 1 | C65: Затраты на оплату труда основного персонала | D65: =D12*D9 -> 256.78
B66: 2 | C66: Затраты материальных запасов | D66: =D20*D9 -> 109.42
B67: 3 | C67: Сумма начисленной амортизации оборудования, используемого при оказании платной услуги | D67: -
B68: 4 | C68: Накладные затраты, относимые на платную услугу | D68: =D25*D9 -> 131.18
B69: 5 | C69: Итого затрат | D69: =SUM(D65:D68) -> 497.38
B70: 6 | C70: Цена на 1 платную услугу | D70: 75.00
B71: 7 | C71: Цена в месяц на 1 ребенка | D71: 300.00

Sheet Лист1
B3: д/с Теремок
B5: Кружок «Творческая мастерская» | C5: "Здоровячок"
B6: Рахматуллина Э.А.
B7: S- кв.м. | D7: 53
B8: Кол-во занятий в мес. - | D8: 4
B9: Кол-во детей - | D9: 12
B10: Ст-ть использ-го оборудования - руб. | D10: 29120
B12: 1. ОТ на 1 обучающего - руб.: | D12: =D13+D15 -> 21.45
B13: Окл.- 14232,00 руб | D13: =14232/18/4/D9 -> 16.47
B15: Начисление на ОТ - | D15: =D13*30.2% -> 4.97
B18: 2. Затраты на мат.запасы на 1 реб. -руб.
B19: ст обор/36мес.=руб. | D19: =D10/36 -> 808.89
B20: Затраты на 1 занятие- ст обор в мес/кол-во часов в мес/кол-во детей - руб. | D20: =D19/D8/D9 -> 16.85
B22: 3. Объем накладных затрат 1 ребенка - руб. | D22: =D30 -> 11.41
B23: Расчет накладных затрат
B24: 1 | C24: прогноз затрат на АУП | D24: -
B25: 2 | C25: Прогноз затрат общехозяйственного назнач. | D25: =D34+D35+2.3 -> 11.41
B26: 3 | C26: Прогноз суммы начисленной амортизации имущ-ва общехоз-го назнач. | D26: -
B27: 4 | C27: Прогноз ФОТ основного персонала | D27: =D12 -> 21.45
B28: 5 | C28: Коэффициент накладных затрат 5=(1+2+3)/4 | D28: =D25/D27 -> 0.53
B29: 6 | C29: Затраты на основн персонал, | D29: =D12 -> 21.45
B30: 7 | C30: Итого накладные затраты (в час на 1 реб) | D30: =D25 -> 11.41
B33: 1. | C33: ОТ уборщика: руб. | D33: =D34 -> 7.65
C34: 14686,56 руб./40 час/4 нед*1 час=91,79/кол-во дет, руб. | D34: =91.79/D9 -> 7.65
B35: 2. | C35: Затраты на ком. Услуги: коммун/кол-во дет, руб. | D35: =(B36+B40+B45)/D9 -> 1.47
A36: Э/Э - | B36: =0.01*D7*7.05 -> 3.74 | C36: руб.
A37: Годов. Потребл - 47223 квт/ч (факт 2018 г)
A38: 47223 квт/ч/244 раб.дн.в году=193,54 квт/ч в день/12 час.=16,13 квт/ч (затраты в час работы на все здание)
A39: 16,13 квт/ч /1076,1 кв.м*12,9 кв.м.=1,56 квт/ч*5,69 руб.=
A40: Вода- | B40: =F41+0.1+2.4+2.15 -> 8.49 | C40: руб.
A41: 1 реб*75 л(в день норма)/12 часов/1000=0,00625 куб.м*31,97 руб.=0,32 руб.*кол-во дет= руб. | F41: =0.32*D9 -> 3.84
A42: 2 работника (воспит, уборщ)*20 л/12 час/1000=0,003 куб.м.*31,97 руб.=0,1 руб.
A43: На мытье полов 75 л/1000=0,075 куб.м.*31,97 руб.=2,4 руб.
A44: Водоотвед. 0,00625 куб.м.+0,003 куб.м.+0,075 куб.м.=0,08425 куб.м.*25,54 руб=2,15 руб.
A45: Отопление - | B45: =0.039*D7/30/24*1867 -> 5.36 | C45: руб.
A46: 331,5 Гкал(по факту 2018 г)/8 мес(период отопления)= 41,44 Гкал в мес.
A47: 41,44 Гкал/1076,1*12,9 кв.м=1,270Гкал/30 дн/24 ч*1 ч=0,0018 Гкал в час*1843,34 руб.= руб.
B49: 3. | C49: Материальные затраты - 2,3 руб.
A50: - Канцелярские товары (для ведения документации) – 1,3 руб. на одного ребенка
A51: Стоимость – 6144 руб.
A52: Срок полезного использования – 8 мес.
A53: Расходы в месяц – 768/8=96
A54: Затраты на одного ребенка за одно занятие – 96/4(часов в месяц)=24/10(кол-во детей)=1,2
A55: - Моющие средства для уборки помещения – 1,1 руб. на одного ребенка
A56: Стоимость – 5632
A57: Срок полезного использования – 8 мес.
A58: Расходы в месяц –704/8=88
A59: Затраты на одного ребенка за одно занятие – 88/4(часов в месяц)=22/10(кол-во детей)=1,1
C61: Расчет стоимости одного занятия на 1 человека:
C62: Расчет цены на оказание платной услуги
C64: Наименование статей затрат | D64: Сумма (руб.)
B65: 1 | C65: Затраты на оплату труда основного персонала | D65: =D12*D9 -> 257.36
B66: 2 | C66: Затраты материальных запасов | D66: =D20*D9 -> 202.22
B67: 3 | C67: Сумма начисленной амортизации оборудования, используемого при оказании платной услуги | D67: -
B68: 4 | C68: Накладные затраты, относимые на платную услугу | D68: =D25*D9 -> 136.98
B69: 5 | C69: Итого затрат | D69: =SUM(D65:D68) -> 596.56
B70: 6 | C70: Цена на 1 платную услугу | D70: =D69/D9 -> 49.71
B71: 7 | C71: Цена в месяц на 1 ребенка | D71: 300.00
